fUST/lending_fUST_20260116
["ID","MTS","AMOUNT","RATE_DAILY","PERIOD"]
[402114970,1768525843786,-1564.459117,0.00019949,2]
[402114971,1768525843795,-151.0,0.00019949,2]
[402114972,1768525843805,-475.0,0.0001995,2]
[402114973,1768525843815,-1043.8062381,0.0001995,2]
[402114974,1768525843825,-1058074.81475594,0.0001995,2]
[402114975,1768525843854,-1843.66700258,0.0001995,2]
[402114976,1768525843866,-1496.92909725,0.0001995,2]
[402114977,1768525844159,-158.0,0.000159,2]
[402114978,1768525844169,-158.0,0.000159,2]
[402114979,1768525844180,-250.0,0.00018964,2]
[402114980,1768525844189,-183.28632031,0.00018964,2]
[402114981,1768525844198,-2465.18652612,0.00019667,2]
[402114982,1768525844208,-7913.37853617,0.0001995,2]
[402114983,1768525844221,-671.77936835,0.0001995,2]
[402114984,1768525844233,-35839.49205118,0.0001995,2]
[402114985,1768525844245,-1704.00251607,0.0001995,2]
[402114986,1768525844258,-56614.42791978,0.0001995,2]
[402114987,1768525845321,-158.0,0.000159,2]
[402114988,1768525845331,-228.21165126,0.0001995,2]
[402114989,1768525845345,-32306.68186744,0.0001995,2]
[402114990,1768525845356,-5053.05608969,0.0001995,2]
[402114991,1768525845368,-6654.11196821,0.0001995,2]
[402114992,1768525846519,-48573.82859732,0.0001995,2]
[402114995,1768525846602,-158.0,0.000169,2]
[402114996,1768525846612,-1370.81286884,0.0001995,2]
[402114997,1768525846623,-12370.33438297,0.0001995,2]
[402114998,1768525846661,-291.86447543,0.0001995,2]
[402115021,1768526134226,1165.77,0.00010958,20]
[402115022,1768526134414,1165.77,0.00010958,21]
[402115023,1768526134710,1165.77,0.00010958,21]
[402115024,1768526134953,1165.77,0.00010958,21]
[402115025,1768526135216,1165.77,0.00010958,21]
[402115026,1768526135434,1165.94630573,0.00010958,21]
[402115183,1768526915707,8269.06652545,7.3e-05,2]
[402115212,1768527032564,-154.7,8.928e-05,2]
[402115213,1768527032573,-495.32727789,8.928e-05,2]
[402115214,1768527032598,-49.67272211,8.928e-05,2]
[402115215,1768527032608,-255.55473688,8.979e-05,2]
[402115216,1768527032617,-232.06,9.416e-05,2]
[402115217,1768527032627,-309.41,9.826e-05,2]
[402115218,1768527032637,-484.51873844,0.0001,2]
[402115219,1768527032649,-1515.48126156,0.0001,2]
[402115220,1768527032658,-876.88425152,0.0001,3]
[402115221,1768527032669,-1123.11574848,0.0001,3]
[402115222,1768527032678,-300.0,0.00010125,2]
[402115223,1768527032688,-1200.0,0.00010125,2]
[402115224,1768527032697,-500.0,0.00010126,2]
[402115225,1768527032707,-500.0,0.00010126,2]
[402115226,1768527032716,-194.43910051,0.00010126,2]
[402115227,1768527032725,-699.0,0.00010126,2]
[402115228,1768527032735,-500.0,0.00010126,2]
[402115229,1768527032745,-500.0,0.00010126,2]
[402115231,1768527032757,-500.0,0.00010126,2]
[402115233,1768527032766,-500.0,0.00010126,2]
[402115236,1768527032776,-500.0,0.00010126,2]
[402115238,1768527032785,-284.69860491,0.00010126,2]
[402115240,1768527032795,-153.65328236,0.00010126,2]
[402115242,1768527032803,-386.76,0.00010235,2]
[402115245,1768527032821,-500.0,0.00010263,2]
[402115248,1768527032833,-500.0,0.00010263,2]
[402115250,1768527033219,-699.0,0.00010263,2]
[402115251,1768527033258,-500.0,0.00010263,2]
[402115252,1768527033268,-500.0,0.00010263,2]
[402115253,1768527033277,-500.0,0.00010263,2]
[402115254,1768527033287,-500.0,0.00010263,2]
[402115255,1768527033297,-500.0,0.00010263,2]
[402115256,1768527033306,-4791.3015087,0.00010298,2]
[402115257,1768527033316,-14243.13011166,0.000103,2]
[402115258,1768527033327,-387.39274347,0.000103,2]
[402115298,1768527038841,-4793.13652349,0.000103,2]
[402115300,1768527038854,-132899.43790072,0.000103,2]
[402115302,1768527038865,-500.0,0.000104,2]
[402115304,1768527038875,-500.0,0.000104,2]
[402115306,1768527038885,-699.0,0.000104,2]
[402115308,1768527038895,-500.0,0.000104,2]
[402115310,1768527038905,-500.0,0.000104,2]
[402115312,1768527038915,-500.0,0.000104,2]
[402115314,1768527038925,-500.0,0.000104,2]
[402115317,1768527038935,-153.47584433,0.000104,2]
[402115319,1768527038945,-500.0,0.000104,2]
[402115321,1768527038955,-205.84,0.000104,2]
[402115323,1768527038965,-196.74,0.000104,2]
[402115325,1768527038975,-178.41295596,0.000104,2]
[402115327,1768527038985,-500.0,0.000104,2]
[402115329,1768527038995,-500.0,0.000104,2]
[402115331,1768527039005,-500.0,0.000104,2]
[402115333,1768527039015,-500.0,0.000104,2]
[402115335,1768527039026,-500.0,0.000104,2]
[402115337,1768527039036,-500.0,0.000104,2]
[402115339,1768527039046,-500.0,0.000104,2]
[402115341,1768527039055,-500.0,0.000104,2]
[402115343,1768527039065,-500.0,0.000104,2]
[402115345,1768527039075,-500.0,0.000104,2]
[402115347,1768527039085,-500.0,0.000104,2]
[402115349,1768527039095,-500.0,0.000104,2]
[402115351,1768527039107,-500.0,0.000104,2]
[402115353,1768527039117,-500.0,0.000104,2]
[402115355,1768527039127,-500.0,0.000104,2]
[402115356,1768527039137,-851.63608131,0.000104,2]
[402115357,1768527039147,-500.0,0.000104,2]
[402115358,1768527039157,-500.0,0.000104,2]
[402115359,1768527039167,-500.0,0.000104,2]
[402115360,1768527039177,-500.0,0.000104,2]
[402115361,1768527039187,-500.0,0.000104,2]
[402115362,1768527039197,-500.0,0.000104,2]
[402115363,1768527039207,-500.0,0.000104,2]
[402115364,1768527039217,-500.0,0.000104,2]
[402115365,1768527039227,-500.0,0.000104,2]
[402115366,1768527039237,-500.0,0.000104,2]
[402115367,1768527039246,-500.0,0.000104,2]
[402115368,1768527039256,-500.0,0.000104,2]
[402115369,1768527039266,-500.0,0.000104,2]
[402115370,1768527039277,-500.0,0.000104,2]
[402115371,1768527039287,-500.0,0.000104,2]
[402115372,1768527039297,-500.0,0.000104,2]
[402115373,1768527039308,-500.0,0.000104,2]
[402115374,1768527039326,-500.0,0.000104,2]
[402115375,1768527039339,-500.0,0.000104,2]
[402115376,1768527039350,-500.0,0.000104,2]
[402115377,1768527039361,-500.0,0.000104,2]
[402115379,1768527039371,-500.0,0.000104,2]
[402115380,1768527039381,-500.0,0.000104,2]
[402115381,1768527039392,-500.0,0.000104,2]
[402115382,1768527039402,-500.0,0.000104,2]
[402115383,1768527039412,-500.0,0.000104,2]
[402115384,1768527039423,-500.0,0.000104,2]
[402115385,1768527039433,-500.0,0.000104,2]
[402115387,1768527039444,-500.0,0.000104,2]
[402115389,1768527039454,-500.0,0.000104,2]
[402115391,1768527039464,-500.0,0.000104,2]
[402115393,1768527039474,-500.0,0.000104,2]
[402115395,1768527039485,-548.36391869,0.000104,2]
[402115397,1768527039498,-500.0,0.000104,2]
[402115399,1768527039508,-500.0,0.000104,2]
[402115401,1768527039518,-500.0,0.000104,2]
[402115403,1768527039528,-500.0,0.000104,2]
[402115405,1768527039539,-500.0,0.000104,2]
[402115408,1768527039549,-500.0,0.000104,2]
[402115410,1768527039559,-500.0,0.000104,2]
[402115412,1768527039568,-500.0,0.000104,2]
[402115414,1768527039578,-500.0,0.000104,2]
[402115416,1768527039589,-500.0,0.000104,2]
[402115418,1768527039598,-500.0,0.000104,2]
[402115420,1768527039608,-500.0,0.000104,2]
[402115422,1768527039619,-500.0,0.000104,2]
[402115424,1768527039629,-288.50578496,0.00010537,2]
[402115426,1768527039639,-500.0,0.00010537,2]
[402115428,1768527039649,-699.0,0.00010537,2]
[402115430,1768527039659,-500.0,0.00010537,2]
[402115432,1768527039669,-482.49936425,0.00010537,2]
[402115435,1768527039679,-400.39390306,0.00010537,2]
[402115437,1768527039689,-500.0,0.00010537,2]
[402115439,1768527039699,-464.11,0.00010644,2]
[402115441,1768527039708,-500.0,0.00010674,2]
[402115443,1768527039718,-200.0,0.00010674,2]
[402115445,1768527039728,-699.0,0.00010674,2]
[402115447,1768527039739,-500.0,0.00010674,2]
[402115449,1768527039748,-271.43018214,0.00010674,2]
[402115451,1768527039759,-500.0,0.00010674,2]
[402115453,1768527039770,-500.0,0.00010674,2]
[402115455,1768527039781,-500.0,0.00010811,2]
[402115457,1768527039792,-699.0,0.00010811,2]
[402115459,1768527039802,-500.0,0.00010811,2]
[402115462,1768527039813,-500.0,0.00010811,2]
[402115464,1768527039823,-500.0,0.00010852,2]
[402115466,1768527039832,-198.90306954,0.00010852,2]
[402115468,1768527039842,-500.0,0.00010857,2]
[402115470,1768527039852,-523.47214422,0.00010857,2]
[402115472,1768527039861,-500.0,0.00010857,2]
[402115474,1768527039871,-285.27697694,0.00010857,2]
[402115476,1768527039881,-500.0,0.00010948,2]
[402115478,1768527039892,-699.0,0.00010948,2]
[402115480,1768527039902,-500.0,0.00010948,2]
[402115482,1768527039911,-500.0,0.00010948,2]
[402115484,1768527039921,-490.75948719,0.00010948,2]
[402115500,1768527040065,-301.55458952,0.00010979,2]
[402115502,1768527040075,-500.0,0.00010989,2]
[402115504,1768527040084,-151.0,0.00011,2]
[402115506,1768527040094,-541.46,0.00011054,2]
[402115509,1768527040103,-300.0,0.00011074,2]
[402115511,1768527040117,-300.0,0.00011074,2]
[402115513,1768527040127,-300.0,0.00011074,2]
[402115515,1768527040136,-300.0,0.00011074,2]
[402115517,1768527040145,-300.0,0.00011074,2]
[402115519,1768527040154,-300.0,0.00011074,2]
[402115521,1768527040164,-300.0,0.00011074,2]
[402115523,1768527040173,-300.0,0.00011074,2]
[402115525,1768527040183,-300.0,0.00011074,2]
[402115527,1768527040193,-300.0,0.00011074,2]
[402115529,1768527040202,-499.99999997,0.00011085,2]
[402115531,1768527040211,-699.0,0.00011085,2]
[402115533,1768527040221,-554.02588884,0.00011085,2]
[402115535,1768527040230,-500.0,0.00011085,2]
[402115537,1768527040239,-300.0,0.00011126,2]
[402115539,1768527040248,-420.0,0.00011136,2]
[402115541,1768527040257,-699.0,0.00011222,2]
[402115543,1768527040267,-500.0,0.00011222,2]
[402115545,1768527040276,-699.0,0.00011359,2]
[402115547,1768527040285,-500.0,0.00011359,2]
[402115549,1768527040294,-618.81,0.00011463,2]
[402115551,1768527040304,-699.0,0.00011496,2]
[402115553,1768527040313,-500.0,0.00011496,2]
[402115555,1768527040322,-699.0,0.00011633,2]
[402115557,1768527040331,-500.0,0.00011633,2]
[402115559,1768527040341,-213.39269675,0.00011698,2]
[402115561,1768527040350,-699.0,0.0001177,2]
[402115563,1768527040359,-500.0,0.0001177,2]
[402115566,1768527040369,-2000.0,0.000118,4]
[402115568,1768527040379,-696.17,0.00011873,2]
[402115570,1768527040388,-151.0,0.000119,2]
[402115572,1768527040397,-699.0,0.00011907,2]
[402115574,1768527040406,-500.0,0.00011907,2]
[402115576,1768527040416,-250.0,0.00011934,2]
[402115578,1768527040427,-4791.30150866,0.00012028,2]
[402115580,1768527040436,-699.0,0.00012044,2]
[402115583,1768527040446,-500.0,0.00012044,2]
[402115585,1768527040456,-699.0,0.00012181,2]
[402115587,1768527040465,-500.0,0.00012181,2]
[402115589,1768527040474,-587.0,0.00012248,2]
[402115591,1768527040484,-773.52,0.00012282,2]
[402115593,1768527040496,-699.0,0.00012318,2]
[402115595,1768527040505,-500.0,0.00012318,2]
[402115597,1768527040515,-203.16,0.00012329,2]
[402115599,1768527040525,-2153.30672806,0.00012339,2]
[402115601,1768527040535,-699.0,0.00012455,2]
[402115603,1768527040544,-529.76450099,0.00012455,2]
[402115605,1768527040553,-8134.19335057,0.000125,2]
[402115607,1768527040563,-699.0,0.00012592,2]
[402115609,1768527040573,-151.0,0.000127,2]
[402115611,1768527040583,-699.0,0.00012729,2]
[402115613,1768527040593,-2000.0,0.000128,5]
[402115615,1768527040603,-699.0,0.00012866,2]
[402115617,1768527040614,-10211.66292024,0.000129,2]
[402115619,1768527040624,-10211.66292018,0.000129,2]
[402115621,1768527040634,-347.55444216,0.00012979,2]
[402115623,1768527040644,-699.0,0.00013003,2]
[402115625,1768527040654,-699.0,0.0001314,2]
[402115627,1768527040663,-625.58345374,0.00013154,2]
[402115629,1768527040672,-500.0,0.00013273,2]
[402115631,1768527040682,-500.0,0.00013273,2]
[402115633,1768527040691,-500.0,0.00013273,2]
[402115635,1768527040701,-497.40412092,0.00013273,2]
[402115638,1768527040710,-498.42292613,0.00013273,2]
[402115640,1768527040720,-500.0,0.00013273,2]
[402115642,1768527040729,-500.0,0.00013273,2]
[402115644,1768527040739,-500.0,0.00013273,2]
[402115646,1768527040748,-500.0,0.00013273,2]
[402115648,1768527040758,-500.0,0.00013273,2]
[402115650,1768527040768,-500.0,0.00013273,2]
[402115652,1768527040777,-500.0,0.00013273,2]
[402115654,1768527040787,-500.0,0.00013273,2]
[402115656,1768527040796,-500.0,0.00013273,2]
[402115658,1768527040806,-500.0,0.00013273,2]
[402115660,1768527040815,-500.0,0.00013273,2]
[402115662,1768527040825,-500.0,0.00013273,2]
[402115664,1768527040834,-500.0,0.00013273,2]
[402115666,1768527040843,-501.64226358,0.00013273,2]
[402115668,1768527040852,-500.0,0.00013273,2]
[402115670,1768527040861,-502.0174761,0.00013273,2]
[402115672,1768527040871,-500.9653681,0.00013273,2]
[402115674,1768527040880,-714.83414865,0.00013277,2]
[402115676,1768527040890,-823.0,0.00013471,2]
[402115678,1768527040900,-151.0,0.000136,2]
[402115680,1768527040909,-300.0,0.00013673,2]
[402115682,1768527040919,-567.64728941,0.00013698,2]
[402115684,1768527040928,-500.0,0.00013698,2]
[402115686,1768527040937,-500.0,0.00013698,2]
[402115688,1768527040950,-500.0,0.00013698,2]
[402115690,1768527040959,-500.0,0.00013698,2]
[402115693,1768527040969,-500.0,0.00013698,2]
[402115695,1768527040979,-500.0,0.00013698,2]
[402115697,1768527040988,-500.0,0.00013698,2]
[402115699,1768527040998,-500.0,0.00013698,2]
[402115701,1768527041008,-500.0,0.00013698,2]
[402115703,1768527041017,-500.0,0.00013698,2]
[402115705,1768527041026,-500.0,0.00013698,2]
[402115707,1768527041036,-500.0,0.00013698,2]
[402115709,1768527041045,-500.0,0.00013698,2]
[402115711,1768527041055,-500.0,0.00013698,2]
[402115713,1768527041064,-500.0,0.00013698,2]
[402115716,1768527041073,-500.0,0.00013698,2]
[402115718,1768527041083,-400.99242796,0.00013698,2]
[402115720,1768527041092,-500.0,0.00013698,2]
[402115722,1768527041101,-500.0,0.00013698,2]
[402115724,1768527041110,-500.0,0.00013698,2]
[402115726,1768527041120,-1203.44,0.00013698,2]
[402115728,1768527041129,-500.0,0.00013698,2]
[402115730,1768527041139,-500.0,0.00013698,2]
[402115732,1768527041148,-1000.0,0.00013699,2]
[402115734,1768527041158,-3950.5361061,0.00013699,2]
[402115736,1768527041167,-12252.8969936,0.00013699,2]
[402115738,1768527041176,-1409.206542,0.00013699,2]
[402115740,1768527041185,-500.0,0.00013699,2]
[402115742,1768527041195,-500.0,0.00013699,2]
[402115744,1768527041204,-500.0,0.00013699,2]
[402115746,1768527041213,-500.0,0.00013699,2]
[402115748,1768527041222,-622.77582061,0.00013699,2]
[402115750,1768527041231,-308.12834967,0.00013699,2]
[402115752,1768527041241,-502.0049811,0.00013699,2]
[402115754,1768527041250,-500.0,0.00013699,2]
[402115757,1768527041261,-500.0,0.00013699,2]
[402115759,1768527041270,-500.0,0.00013699,2]
[402115761,1768527041279,-500.0,0.00013699,2]
[402115763,1768527041289,-500.0,0.00013699,2]
[402115765,1768527041299,-500.0,0.00013699,2]
[402115766,1768527041308,-596.52592323,0.00013699,2]
[402115768,1768527041317,-500.0,0.00013699,2]
[402115770,1768527041326,-501.50533149,0.00013699,2]
[402115773,1768527041336,-500.0,0.00013699,2]
[402115775,1768527041345,-500.0,0.00013699,2]
[402115777,1768527041354,-500.0,0.00013699,2]
[402115779,1768527041364,-500.0,0.00013699,2]
[402115781,1768527041373,-4791.30150866,0.00013758,2]
[402115783,1768527041382,-2048.49,0.00013775,2]
[402115784,1768527041392,-500.0,0.00013791,2]
[402115787,1768527041401,-1203.44,0.00013791,2]
[402115788,1768527041411,-574.08865466,0.00013821,2]
[402115791,1768527041420,-456.61841221,0.00013821,2]
[402115793,1768527041430,-1000.0,0.00013821,2]
[402115795,1768527041438,-1000.0,0.00013821,2]
[402115797,1768527041448,-1004.99784011,0.00013821,2]
[402115799,1768527041457,-500.0,0.00013821,2]
[402115801,1768527041466,-1000.0,0.00013821,2]
[402115803,1768527041475,-500.24255453,0.00013821,2]
[402115804,1768527041484,-1004.15629489,0.00013821,2]
[402115807,1768527041497,-500.0,0.00013881,2]
[402115809,1768527041506,-500.0,0.00013881,2]
[402115811,1768527041517,-46377.11858497,0.00014152,2]
[402115813,1768527041526,-600.0,0.00014221,2]
[402115815,1768527041535,-1000.0,0.00014247,2]
[402115817,1768527041545,-431.404347,0.00014247,2]
[402115819,1768527041554,-1000.0,0.00014247,2]
[402115821,1768527041563,-250.0,0.00014247,2]
[402115823,1768527041572,-1000.0,0.00014247,2]
[402115825,1768527041581,-502.24534211,0.00014247,2]
[402115827,1768527041590,-504.7283729,0.00014247,2]
[402115829,1768527041599,-1000.0,0.00014247,2]
[402115831,1768527041610,-1000.0,0.00014247,2]
[402115833,1768527041619,-920.28537916,0.00014247,2]
[402115835,1768527041629,-1000.0,0.00014247,2]
[402115837,1768527041638,-193.89026614,0.00014247,2]
[402115839,1768527041648,-310.24231288,0.00014247,2]
[402115841,1768527041656,-1000.0,0.00014247,2]
[402115843,1768527041665,-1000.0,0.00014247,2]
[402115845,1768527041674,-1000.0,0.00014368,2]
[402115847,1768527041683,-1500.0,0.00014368,2]
[402115849,1768527041692,-1500.0,0.00014368,2]
[402115851,1768527041701,-151.0,0.000144,2]
[402115853,1768527041711,-5000.0,0.0001451,2]
[402115855,1768527041720,-303.86573033,0.00014768,2]
[402115857,1768527041729,-1500.0,0.00014795,2]
[402115859,1768527041738,-1500.0,0.00014795,2]
[402115861,1768527041747,-201.04460068,0.00014795,2]
[402115863,1768527041756,-1500.0,0.00014795,2]
[402115865,1768527041765,-1200.0,0.00014795,2]
[402115867,1768527041774,-1500.0,0.00014795,2]
[402115869,1768527041784,-1500.0,0.00014795,2]
[402115871,1768527041793,-243.42946379,0.00014795,2]
[402115873,1768527041802,-1152.0,0.00014817,2]
[402115875,1768527041811,-629.0,0.00014889,2]
[402115877,1768527041820,-2147.0,0.00014889,2]
[402115879,1768527041829,-595.0712599,0.000149,2]
[402115881,1768527041838,-1002.40018303,0.00014916,2]
[402115883,1768527041849,-1073.16021096,0.00014916,2]
[402115885,1768527041858,-160.0,0.00014977,3]
[402115887,1768527041867,-393.5542948,0.00014979,2]
[402115889,1768527041876,-1372.56361004,0.00015,3]
[402115891,1768527041885,-151.02787374,0.00015,2]
[402115893,1768527041894,-91114.35744577,0.00015,7]
[402115895,1768527041903,-163.995173,0.00015068,2]
[402115897,1768527041912,-10211.66292018,0.00015155,2]
[402115899,1768527041921,-160.0,0.0001517,4]
[402115901,1768527041931,-151.0,0.000153,2]
[402115903,1768527041941,-605.07188428,0.00015342,2]
[402115905,1768527041951,-2065.26822594,0.00015342,2]
[402115907,1768527041960,-2000.0,0.00015342,2]
[402115909,1768527041969,-172.150742,0.00015342,7]
[402115911,1768527041978,-2000.0,0.00015342,2]
[402115913,1768527041987,-890.91804532,0.00015342,2]
[402115915,1768527041998,-160.0,0.00015362,5]
[402115917,1768527042007,-500.0,0.00015388,2]
[402115919,1768527042017,-207.084683,0.00015388,7]
[402115921,1768527042027,-500.0,0.00015388,2]
[402115923,1768527042036,-341.97823551,0.000154,2]
[402115925,1768527042045,-522.96332519,0.000154,2]
[402115927,1768527042055,-174.32110838,0.000154,2]
[402115929,1768527042065,-4791.30150866,0.00015487,2]
[402115931,1768527042075,-160.0,0.00015555,6]
[402115933,1768527042085,-874.32,0.0001571,2]
[402115935,1768527042094,-874.32,0.0001571,3]
[402115937,1768527042103,-874.32,0.0001571,4]
[402115939,1768527042113,-500.0,0.0001571,2]
[402115941,1768527042122,-160.0,0.00015748,7]
[402115943,1768527042132,-523.03503726,0.00015749,30]
[402115945,1768527042141,-500.0,0.00015749,30]
[402115947,1768527042150,-500.0,0.00015749,30]
[402115949,1768527042159,-499.3,0.00015749,30]
[402115951,1768527042169,-190.0,0.00015749,30]
[402115953,1768527042179,-791.66062171,0.00015749,30]
[402115955,1768527042188,-500.0,0.00015749,30]
[402115957,1768527042197,-500.0,0.00015749,30]
[402115959,1768527042206,-500.0,0.00015749,30]
[402115961,1768527042215,-500.0,0.00015749,30]
[402115963,1768527042224,-500.0,0.00015749,30]
[402115965,1768527042233,-500.0,0.00015749,30]
[402115967,1768527042242,-500.0,0.00015749,30]
[402115969,1768527042252,-500.0,0.00015749,30]
[402115971,1768527042261,-500.0,0.00015749,30]
[402115973,1768527042270,-500.0,0.00015749,30]
[402115975,1768527042280,-500.0,0.00015749,30]
[402115977,1768527042289,-500.0,0.00015749,30]
[402115979,1768527042298,-500.0,0.00015749,30]
[402115981,1768527042308,-500.0,0.00015749,30]
[402115983,1768527042318,-500.0,0.00015749,30]
[402115985,1768527042327,-500.0,0.00015749,30]
[402115987,1768527042336,-500.0,0.00015749,30]
[402115989,1768527042346,-500.0,0.00015749,30]
[402115991,1768527042355,-500.0,0.00015749,30]
[402115993,1768527042365,-500.0,0.00015749,30]
[402115995,1768527042376,-500.0,0.00015749,30]
[402115998,1768527042386,-500.0,0.00015749,30]
[402116000,1768527042396,-500.0,0.00015749,30]
[402116002,1768527042405,-500.0,0.00015749,30]
[402116004,1768527042415,-500.0,0.00015749,30]
[402116006,1768527042425,-500.0,0.00015749,30]
[402116008,1768527042434,-500.0,0.00015749,30]
[402116010,1768527042444,-500.0,0.00015749,30]
[402116012,1768527042453,-500.0,0.00015749,30]
[402116014,1768527042462,-500.0,0.00015749,30]
[402116016,1768527042471,-500.0,0.00015749,30]
[402116018,1768527042480,-500.0,0.00015749,30]
[402116020,1768527042492,-901.3829599,0.00015749,30]
[402116022,1768527042502,-500.0,0.00015749,30]
[402116024,1768527042512,-500.0,0.00015749,30]
[402116026,1768527042521,-500.0,0.00015749,30]
[402116028,1768527042531,-500.0,0.00015749,30]
[402116029,1768527042540,-500.0,0.00015749,30]
[402116032,1768527042549,-499.3,0.00015749,30]
[402116034,1768527042559,-516.296961,0.00015749,30]
[402116035,1768527042569,-500.0,0.00015749,30]
[402116038,1768527042579,-500.0,0.00015749,30]
[402116040,1768527042588,-500.0,0.00015749,30]
[402116042,1768527042597,-500.0,0.00015749,30]
[402116044,1768527042606,-500.0,0.00015749,30]
[402116045,1768527042615,-500.0,0.00015749,30]
[402116047,1768527042624,-500.0,0.00015749,30]
[402116049,1768527042633,-500.0,0.00015749,30]
[402116052,1768527042644,-500.0,0.00015749,30]
[402116054,1768527042654,-500.0,0.00015749,30]
[402116056,1768527042664,-500.0,0.00015749,30]
[402116058,1768527042673,-500.0,0.00015749,30]
[402116060,1768527042682,-500.0,0.00015749,30]
[402116062,1768527042691,-500.0,0.00015749,30]
[402116063,1768527042700,-500.0,0.00015749,30]
[402116066,1768527042710,-500.0,0.00015749,30]
[402116068,1768527042720,-500.0,0.00015749,30]
[402116069,1768527042728,-500.0,0.00015749,30]
[402116070,1768527042737,-500.0,0.00015749,30]
[402116071,1768527042747,-500.0,0.00015749,30]
[402116073,1768527042757,-500.0,0.00015749,30]
[402116075,1768527042766,-500.0,0.00015749,30]
[402116077,1768527042775,-500.0,0.00015749,30]
[402116078,1768527042785,-500.0,0.00015749,30]
[402116079,1768527042793,-500.0,0.00015749,30]
[402116081,1768527042804,-500.0,0.00015749,30]
[402116082,1768527042814,-500.0,0.00015749,30]
[402116083,1768527042823,-500.0,0.00015749,30]
[402116084,1768527042833,-2000.0,0.000158,6]
[402116085,1768527042852,-413.161778,0.000158,7]
[402116086,1768527042861,-799.598774,0.000158,7]
[402116087,1768527042870,-2500.0,0.0001589,2]
[402116088,1768527042880,-2500.0,0.0001589,2]
[402116089,1768527042888,-159.0,0.000159,2]
[402116090,1768527042898,-159.0,0.000159,2]
[402116091,1768527042907,-159.0,0.000159,2]
[402116092,1768527042916,-522.96332519,0.00015931,9]
[402116093,1768527042927,-160.0,0.00015941,8]
[402116094,1768527042937,-215.91779165,0.00016,2]
[402116095,1768527042945,-160.0,0.00016134,9]
[402116096,1768527042955,-151.0,0.000162,2]
[402116097,1768527042964,-1613.0,0.00016296,2]
[402116098,1768527042974,-160.0,0.00016327,10]
[402116099,1768527042983,-480.5,0.00016438,2]
[402116100,1768527042993,-1500.0,0.00016438,2]
[402116101,1768527043002,-3000.0,0.00016438,2]
[402116102,1768527043011,-184.6,0.0001644,2]
[402116103,1768527043020,-184.6,0.0001644,2]
[402116104,1768527043029,-184.6,0.0001644,2]
[402116105,1768527043040,-341.97823551,0.00016462,17]
[402116106,1768527043049,-522.96332519,0.00016462,17]
[402116107,1768527043058,-200.0,0.00016473,2]
[402116108,1768527043068,-160.0,0.0001652,11]
[402116109,1768527043077,-7250.48288,0.0001656,7]
[402116110,1768527043086,-1812.62072,0.00016586,7]
[402116111,1768527043095,-497.003239,0.00016586,7]
[402116112,1768527043104,-360.2449669,0.00016586,2]
[402116113,1768527043114,-1032.904445,0.00016631,7]
[402116114,1768527043123,-160.0,0.00016712,12]
[402116115,1768527043133,-2582.261112,0.00016755,7]
[402116116,1768527043142,-1087.572432,0.00016755,7]